fUST/lending_fUST_20260603
["ID","MTS","AMOUNT","RATE_DAILY","PERIOD"]
[423811220,1780431051000,-500.0,0.00014794,2]
[423811209,1780431051000,-500.0,0.00014794,2]
[423811227,1780431051000,-1003.95,0.00014794,2]
[423811218,1780431051000,-500.0,0.00014794,2]
[423811230,1780431051000,-500.0,0.00014794,2]
[423811222,1780431051000,-500.0,0.00014794,2]
[423811225,1780431051000,-500.0,0.00014794,2]
[423811228,1780431051000,-542.13,0.00014794,2]
[423811229,1780431051000,-500.0,0.00014794,2]
[423811231,1780431051000,-551.38,0.00014794,2]
[423811239,1780431051000,-522.99,0.00014794,2]
[423811240,1780431051000,-500.0,0.00014794,2]
[423811241,1780431051000,-648.3,0.00014794,2]
[423811234,1780431051000,-500.0,0.00014794,2]
[423811233,1780431051000,-500.0,0.00014794,2]
[423811237,1780431051000,-500.0,0.00014794,2]
[423811213,1780431051000,-500.0,0.00014794,2]
[423811232,1780431051000,-500.0,0.00014794,2]
[423811217,1780431051000,-500.0,0.00014794,2]
[423811211,1780431051000,-500.0,0.00014794,2]
[423811195,1780431051000,-500.0,0.00014794,2]
[423811205,1780431051000,-500.0,0.00014794,2]
[423811236,1780431051000,-500.0,0.00014794,2]
[423811180,1780431051000,-500.0,0.00014794,2]
[423811184,1780431051000,-500.0,0.00014794,2]
[423811183,1780431051000,-500.0,0.00014794,2]
[423811182,1780431051000,-500.0,0.00014794,2]
[423811181,1780431051000,-500.0,0.00014794,2]
[423811185,1780431051000,-500.0,0.00014794,2]
[423811187,1780431051000,-500.0,0.00014794,2]
[423811188,1780431051000,-500.0,0.00014794,2]
[423811186,1780431051000,-163.35067359,0.00014794,2]
[423811189,1780431051000,-677.89,0.00014794,2]
[423811194,1780431051000,-500.0,0.00014794,2]
[423811197,1780431051000,-500.0,0.00014794,2]
[423811208,1780431051000,-500.0,0.00014794,2]
[423811191,1780431051000,-500.0,0.00014794,2]
[423811198,1780431051000,-500.0,0.00014794,2]
[423811196,1780431051000,-500.0,0.00014794,2]
[423811201,1780431051000,-500.0,0.00014794,2]
[423811192,1780431051000,-500.0,0.00014794,2]
[423811200,1780431051000,-500.0,0.00014794,2]
[423811202,1780431051000,-500.0,0.00014794,2]
[423811193,1780431051000,-500.0,0.00014794,2]
[423811190,1780431051000,-1051.96,0.00014794,2]
[423811203,1780431051000,-500.0,0.00014794,2]
[423811204,1780431051000,-500.0,0.00014794,2]
[423811206,1780431051000,-549.68,0.00014794,2]
[423811214,1780431051000,-540.2,0.00014794,2]
[423811207,1780431051000,-500.0,0.00014794,2]
[423811199,1780431051000,-500.0,0.00014794,2]
[423811235,1780431051000,-500.0,0.00014794,2]
[423811283,1780431051000,-500.0,0.00015068,2]
[423811242,1780431051000,-500.0,0.00014794,2]
[423811279,1780431051000,-500.0,0.00015068,2]
[423811271,1780431051000,-562.5,0.00015068,2]
[423811274,1780431051000,-574.45,0.00015068,2]
[423811275,1780431051000,-500.0,0.00015068,2]
[423811273,1780431051000,-500.0,0.00015068,2]
[423811278,1780431051000,-500.0,0.00015068,2]
[423811282,1780431051000,-500.0,0.00015068,2]
[423811284,1780431051000,-500.0,0.00015068,2]
[423811292,1780431051000,-500.0,0.00015068,2]
[423811294,1780431051000,-500.0,0.00015068,2]
[423811293,1780431051000,-500.0,0.00015068,2]
[423811289,1780431051000,-500.0,0.00015068,2]
[423811285,1780431051000,-586.89,0.00015068,2]
[423811276,1780431051000,-500.0,0.00015068,2]
[423811291,1780431051000,-500.0,0.00015068,2]
[423811286,1780431051000,-500.0,0.00015068,2]
[423811287,1780431051000,-500.0,0.00015068,2]
[423811290,1780431051000,-500.0,0.00015068,2]
[423811295,1780431051000,-500.0,0.00015068,2]
[423811296,1780431051000,-500.0,0.00015068,2]
[423811297,1780431051000,-500.0,0.00015068,2]
[423811298,1780431051000,-500.0,0.00015068,2]
[423811299,1780431051000,-500.0,0.00015068,2]
[423811300,1780431051000,-500.0,0.00015068,2]
[423811302,1780431051000,-500.0,0.00015068,2]
[423811303,1780431051000,-500.0,0.00015068,2]
[423811301,1780431051000,-500.0,0.00015068,2]
[423811238,1780431051000,-500.0,0.00014794,2]
[423811288,1780431051000,-500.0,0.00015068,2]
[423811270,1780431051000,-500.0,0.00015068,2]
[423811281,1780431051000,-500.0,0.00015068,2]
[423811277,1780431051000,-500.0,0.00015068,2]
[423811245,1780431051000,-500.0,0.00014794,2]
[423811280,1780431051000,-500.0,0.00015068,2]
[423811246,1780431051000,-500.0,0.00014794,2]
[423811243,1780431051000,-500.0,0.00014794,2]
[423811247,1780431051000,-500.0,0.00014794,2]
[423811249,1780431051000,-239.56,0.00014794,2]
[423811253,1780431051000,-947.24,0.00014794,2]
[423811248,1780431051000,-500.0,0.00014794,2]
[423811250,1780431051000,-12306.8,0.00014794,2]
[423811254,1780431051000,-500.0,0.00014794,2]
[423811252,1780431051000,-500.0,0.00014794,2]
[423811251,1780431051000,-500.0,0.00014794,2]
[423811256,1780431051000,-1200.27,0.00014794,2]
[423811255,1780431051000,-553.82,0.00014794,2]
[423811257,1780431051000,-537.84,0.00015068,2]
[423811244,1780431051000,-500.0,0.00014794,2]
[423811260,1780431051000,-500.0,0.00015068,2]
[423811258,1780431051000,-500.0,0.00015068,2]
[423811268,1780431051000,-500.0,0.00015068,2]
[423811269,1780431051000,-253.39,0.00015068,2]
[423811267,1780431051000,-454.36,0.00015068,2]
[423811266,1780431051000,-500.0,0.00015068,2]
[423811263,1780431051000,-500.0,0.00015068,2]
[423811272,1780431051000,-366.82,0.00015068,2]
[423811262,1780431051000,-525.02,0.00015068,2]
[423811264,1780431051000,-500.0,0.00015068,2]
[423811261,1780431051000,-500.0,0.00015068,2]
[423811259,1780431051000,-500.0,0.00015068,2]
[423811265,1780431051000,-503.92,0.00015068,2]
[423811359,1780431052000,-562.5,0.00015342,2]
[423811358,1780431052000,-419.86768372,0.00015342,2]
[423811348,1780431052000,-1200.27,0.00015068,2]
[423811339,1780431052000,-500.0,0.00015068,2]
[423811346,1780431052000,-947.24,0.00015068,2]
[423811344,1780431052000,-500.0,0.00015068,2]
[423811336,1780431052000,-500.0,0.00015068,2]
[423811342,1780431052000,-500.0,0.00015068,2]
[423811338,1780431052000,-500.0,0.00015068,2]
[423811341,1780431052000,-500.0,0.00015068,2]
[423811360,1780431052000,-500.0,0.00015342,2]
[423811340,1780431052000,-500.0,0.00015068,2]
[423811345,1780431052000,-500.0,0.00015068,2]
[423811347,1780431052000,-553.82,0.00015068,2]
[423811356,1780431052000,-500.0,0.00015342,2]
[423811351,1780431052000,-500.0,0.00015342,2]
[423811349,1780431052000,-165.220197,0.00015068,2]
[423811350,1780431052000,-500.0,0.00015342,2]
[423811352,1780431052000,-500.0,0.00015342,2]
[423811357,1780431052000,-500.0,0.00015342,2]
[423811353,1780431052000,-159.27,0.00015342,2]
[423811354,1780431052000,-500.0,0.00015342,2]
[423811355,1780431052000,-503.92,0.00015342,2]
[423811362,1780431052000,-500.0,0.00015342,2]
[423811363,1780431052000,-512.43,0.00015342,2]
[423811364,1780431052000,-500.0,0.00015342,2]
[423811366,1780431052000,-500.0,0.00015342,2]
[423811343,1780431052000,-12306.8,0.00015068,2]
[423811361,1780431052000,-634.49,0.00015342,2]
[423811335,1780431052000,-522.99,0.00015068,2]
[423811306,1780431052000,-500.0,0.00015068,2]
[423811334,1780431052000,-500.0,0.00015068,2]
[423811369,1780431052000,-287.99,0.00015342,2]
[423811305,1780431052000,-300.16191501,0.00015068,2]
[423811304,1780431052000,-500.0,0.00015068,2]
[423811307,1780431052000,-677.89,0.00015068,2]
[423811309,1780431052000,-500.0,0.00015068,2]
[423811308,1780431052000,-1051.96,0.00015068,2]
[423811312,1780431052000,-500.0,0.00015068,2]
[423811311,1780431052000,-500.0,0.00015068,2]
[423811310,1780431052000,-500.0,0.00015068,2]
[423811314,1780431052000,-549.68,0.00015068,2]
[423811313,1780431052000,-500.0,0.00015068,2]
[423811315,1780431052000,-500.0,0.00015068,2]
[423811319,1780431052000,-587.51,0.00015068,2]
[423811318,1780431052000,-540.2,0.00015068,2]
[423811317,1780431052000,-500.0,0.00015068,2]
[423811321,1780431052000,-500.0,0.00015068,2]
[423811332,1780431052000,-500.0,0.00015068,2]
[423811320,1780431052000,-500.0,0.00015068,2]
[423811333,1780431052000,-500.0,0.00015068,2]
[423811322,1780431052000,-604.75,0.00015068,2]
[423811331,1780431052000,-500.0,0.00015068,2]
[423811323,1780431052000,-500.0,0.00015068,2]
[423811326,1780431052000,-500.0,0.00015068,2]
[423811329,1780431052000,-551.38,0.00015068,2]
[423811330,1780431052000,-501.83,0.00015068,2]
[423811324,1780431052000,-500.0,0.00015068,2]
[423811327,1780431052000,-1003.95,0.00015068,2]
[423811325,1780431052000,-1127.13,0.00015068,2]
[423811328,1780431052000,-542.13,0.00015068,2]
[423811337,1780431052000,-648.3,0.00015068,2]
[423811368,1780431052000,-500.0,0.00015342,2]
[423811316,1780431052000,-1585.15,0.00015068,2]
[423811365,1780431052000,-500.0,0.00015342,2]
[423811406,1780431052000,-500.0,0.00015342,2]
[423811400,1780431052000,-500.0,0.00015342,2]
[423811401,1780431052000,-500.0,0.00015342,2]
[423811398,1780431052000,-648.3,0.00015342,2]
[423811405,1780431052000,-500.0,0.00015342,2]
[423811403,1780431052000,-500.0,0.00015342,2]
[423811404,1780431052000,-12306.8,0.00015342,2]
[423811410,1780431052000,-380.87377172,0.00015349,2]
[423811412,1780431052000,-170.20828097,0.00015579,3]
[423811413,1780431052000,-500.0,0.00015616,2]
[423811416,1780431052000,-500.0,0.00015616,2]
[423811419,1780431052000,-500.0,0.00015616,2]
[423811418,1780431052000,-500.0,0.00015616,2]
[423811430,1780431052000,-677.89,0.00015616,2]
[423811417,1780431052000,-503.92,0.00015616,2]
[423811415,1780431052000,-500.0,0.00015616,2]
[423811411,1780431052000,-489.81568038,0.00015492,2]
[423811414,1780431052000,-500.0,0.00015616,2]
[423811420,1780431052000,-562.5,0.00015616,2]
[423811423,1780431052000,-500.0,0.00015616,2]
[423811422,1780431052000,-500.0,0.00015616,2]
[423811421,1780431052000,-500.0,0.00015616,2]
[423811425,1780431052000,-500.0,0.00015616,2]
[423811424,1780431052000,-500.0,0.00015616,2]
[423811427,1780431052000,-172.32,0.00015616,2]
[423811426,1780431052000,-500.0,0.00015616,2]
[423811428,1780431052000,-500.0,0.00015616,2]
[423811429,1780431052000,-500.0,0.00015616,2]
[423811367,1780431052000,-500.0,0.00015342,2]
[423811402,1780431052000,-500.0,0.00015342,2]
[423811399,1780431052000,-500.0,0.00015342,2]
[423811431,1780431052000,-1051.96,0.00015616,2]
[423811409,1780431052000,-1200.27,0.00015342,2]
[423811396,1780431052000,-522.99,0.00015342,2]
[423811379,1780431052000,-549.68,0.00015342,2]
[423811380,1780431052000,-500.0,0.00015342,2]
[423811372,1780431052000,-677.89,0.00015342,2]
[423811381,1780431052000,-1585.15,0.00015342,2]
[423811371,1780431052000,-500.0,0.00015342,2]
[423811378,1780431052000,-500.0,0.00015342,2]
[423811373,1780431052000,-1051.96,0.00015342,2]
[423811376,1780431052000,-500.0,0.00015342,2]
[423811375,1780431052000,-500.0,0.00015342,2]
[423811374,1780431052000,-500.0,0.00015342,2]
[423811377,1780431052000,-500.0,0.00015342,2]
[423811382,1780431052000,-500.0,0.00015342,2]
[423811383,1780431052000,-540.2,0.00015342,2]
[423811370,1780431052000,-500.0,0.00015342,2]
[423811385,1780431052000,-500.0,0.00015342,2]
[423811384,1780431052000,-500.0,0.00015342,2]
[423811407,1780431052000,-947.24,0.00015342,2]
[423811408,1780431052000,-553.82,0.00015342,2]
[423811397,1780431052000,-500.0,0.00015342,2]
[423811386,1780431052000,-604.75,0.00015342,2]
[423811394,1780431052000,-500.0,0.00015342,2]
[423811389,1780431052000,-1127.13,0.00015342,2]
[423811392,1780431052000,-551.38,0.00015342,2]
[423811391,1780431052000,-542.13,0.00015342,2]
[423811390,1780431052000,-1003.95,0.00015342,2]
[423811388,1780431052000,-500.0,0.00015342,2]
[423811393,1780431052000,-500.0,0.00015342,2]
[423811395,1780431052000,-500.0,0.00015342,2]
[423811387,1780431052000,-188.94,0.00015342,2]
[423811470,1780431053000,-500.0,0.0001589,2]
[423811476,1780431053000,-562.5,0.0001589,2]
[423811473,1780431053000,-503.92,0.0001589,2]
[423811474,1780431053000,-500.0,0.0001589,2]
[423811468,1780431053000,-455.79025709,0.00015798,2]
[423811465,1780431053000,-1200.27,0.00015616,2]
[423811469,1780431053000,-1029.85081383,0.00015826,2]
[423811464,1780431053000,-947.24,0.00015616,2]
[423811471,1780431053000,-500.0,0.0001589,2]
[423811467,1780431053000,-500.0,0.00015798,2]
[423811466,1780431053000,-162.380719,0.00015798,2]
[423811472,1780431053000,-500.0,0.0001589,2]
[423811480,1780431053000,-500.0,0.0001589,2]
[423811485,1780431053000,-677.89,0.0001589,2]
[423811481,1780431053000,-500.0,0.0001589,2]
[423811478,1780431053000,-500.0,0.0001589,2]
[423811487,1780431053000,-500.0,0.0001589,2]
[423811475,1780431053000,-500.0,0.0001589,2]
[423811477,1780431053000,-500.0,0.0001589,2]
[423811482,1780431053000,-500.0,0.0001589,2]
[423811483,1780431053000,-500.0,0.0001589,2]
[423811479,1780431053000,-500.0,0.0001589,2]
[423811484,1780431053000,-500.0,0.0001589,2]
[423811497,1780431053000,-500.0,0.0001589,2]
[423811490,1780431053000,-500.0,0.0001589,2]
[423811493,1780431053000,-500.0,0.0001589,2]
[423811463,1780431053000,-500.0,0.00015616,2]
[423811494,1780431053000,-1585.15,0.0001589,2]
[423811486,1780431053000,-1051.96,0.0001589,2]
[423811456,1780431053000,-500.0,0.00015616,2]
[423811445,1780431053000,-500.0,0.00015616,2]
[423811453,1780431053000,-522.99,0.00015616,2]
[423811500,1780431053000,-500.0,0.0001589,2]
[423811435,1780431053000,-500.0,0.00015616,2]
[423811434,1780431053000,-500.0,0.00015616,2]
[423811432,1780431053000,-500.0,0.00015616,2]
[423811433,1780431053000,-500.0,0.00015616,2]
[423811437,1780431053000,-549.68,0.00015616,2]
[423811439,1780431053000,-1585.15,0.00015616,2]
[423811436,1780431053000,-500.0,0.00015616,2]
[423811438,1780431053000,-500.0,0.00015616,2]
[423811447,1780431053000,-1003.95,0.00015616,2]
[423811446,1780431053000,-1127.13,0.00015616,2]
[423811440,1780431053000,-500.0,0.00015616,2]
[423811448,1780431053000,-542.13,0.00015616,2]
[423811459,1780431053000,-500.0,0.00015616,2]
[423811443,1780431053000,-500.0,0.00015616,2]
[423811444,1780431053000,-604.75,0.00015616,2]
[423811441,1780431053000,-540.2,0.00015616,2]
[423811442,1780431053000,-500.0,0.00015616,2]
[423811450,1780431053000,-500.0,0.00015616,2]
[423811454,1780431053000,-500.0,0.00015616,2]
[423811452,1780431053000,-500.0,0.00015616,2]
[423811460,1780431053000,-500.0,0.00015616,2]
[423811458,1780431053000,-500.0,0.00015616,2]
[423811457,1780431053000,-500.0,0.00015616,2]
[423811455,1780431053000,-648.3,0.00015616,2]
[423811462,1780431053000,-500.0,0.00015616,2]
[423811451,1780431053000,-500.0,0.00015616,2]
[423811461,1780431053000,-12306.8,0.00015616,2]
[423811449,1780431053000,-551.38,0.00015616,2]
[423811489,1780431053000,-500.0,0.0001589,2]
[423811503,1780431053000,-542.13,0.0001589,2]
[423811488,1780431053000,-500.0,0.0001589,2]
[423811528,1780431053000,-500.0,0.00016164,2]
[423811530,1780431053000,-562.5,0.00016164,2]
[423811531,1780431053000,-500.0,0.00016164,2]
[423811533,1780431053000,-500.0,0.00016164,2]
[423811535,1780431053000,-500.0,0.00016164,2]
[423811532,1780431053000,-500.0,0.00016164,2]
[423811534,1780431053000,-500.0,0.00016164,2]
[423811537,1780431053000,-500.0,0.00016164,2]
[423811547,1780431053000,-500.0,0.00016164,2]
[423811548,1780431053000,-1585.15,0.00016164,2]
[423811536,1780431053000,-500.0,0.00016164,2]
[423811538,1780431053000,-500.0,0.00016164,2]
[423811539,1780431053000,-677.89,0.00016164,2]
[423811529,1780431053000,-500.0,0.00016164,2]
[423811549,1780431053000,-540.2,0.00016164,2]
[423811540,1780431053000,-1051.96,0.00016164,2]
[423811545,1780431053000,-500.0,0.00016164,2]
[423811543,1780431053000,-273.17,0.00016164,2]
[423811544,1780431053000,-500.0,0.00016164,2]
[423811542,1780431053000,-500.0,0.00016164,2]
[423811491,1780431053000,-500.0,0.0001589,2]
[423811550,1780431053000,-500.0,0.00016164,2]
[423811553,1780431053000,-500.0,0.00016164,2]
[423811552,1780431053000,-604.75,0.00016164,2]
[423811554,1780431053000,-1127.13,0.00016164,2]
[423811556,1780431053000,-542.13,0.00016164,2]
[423811551,1780431053000,-500.0,0.00016164,2]
[423811555,1780431053000,-1003.95,0.00016164,2]
[423811541,1780431053000,-500.0,0.00016164,2]
[423811518,1780431053000,-500.0,0.0001589,2]
[423811546,1780431053000,-549.68,0.00016164,2]
[423811521,1780431053000,-4243.266796,0.00016,2]
[423811499,1780431053000,-604.75,0.0001589,2]
[423811520,1780431053000,-1200.27,0.0001589,2]
[423811492,1780431053000,-549.68,0.0001589,2]
[423811496,1780431053000,-540.2,0.0001589,2]
[423811495,1780431053000,-397.48,0.0001589,2]
[423811506,1780431053000,-500.0,0.0001589,2]
[423811504,1780431053000,-551.38,0.0001589,2]
[423811509,1780431053000,-500.0,0.0001589,2]
[423811507,1780431053000,-500.0,0.0001589,2]
[423811512,1780431053000,-500.0,0.0001589,2]
[423811502,1780431053000,-1003.95,0.0001589,2]
[423811501,1780431053000,-1127.13,0.0001589,2]
[423811511,1780431053000,-500.0,0.0001589,2]
[423811508,1780431053000,-522.99,0.0001589,2]
[423811498,1780431053000,-500.0,0.0001589,2]
[423811510,1780431053000,-648.3,0.0001589,2]
[423811505,1780431053000,-176.72,0.0001589,2]
[423811519,1780431053000,-947.24,0.0001589,2]
[423811522,1780431053000,-249.0,0.00016053,2]
[423811517,1780431053000,-500.0,0.0001589,2]
[423811526,1780431053000,-500.0,0.00016164,2]
[423811516,1780431053000,-12306.8,0.0001589,2]
[423811525,1780431053000,-500.0,0.00016164,2]
[423811514,1780431053000,-517.52,0.0001589,2]
[423811524,1780431053000,-500.0,0.00016164,2]
[423811515,1780431053000,-500.0,0.0001589,2]
[423811513,1780431053000,-253.46,0.0001589,2]
[423811527,1780431053000,-503.92,0.00016164,2]
[423811523,1780431053000,-810.92677807,0.00016143,2]
[423811579,1780431054000,-171.71459269,0.00016269,2]
[423811588,1780431054000,-562.5,0.00016438,2]
[423811591,1780431054000,-500.0,0.00016438,2]
[423811585,1780431054000,-503.92,0.00016438,2]
[423811583,1780431054000,-595.16,0.00016438,2]
[423811582,1780431054000,-646.62,0.00016438,2]
[423811581,1780431054000,-200.0,0.00016438,2]
[423811584,1780431054000,-500.0,0.00016438,2]
[423811590,1780431054000,-500.0,0.00016438,2]
[423811598,1780431054000,-1051.96,0.00016438,2]
[423811602,1780431054000,-500.0,0.00016438,2]
[423811593,1780431054000,-500.0,0.00016438,2]
[423811592,1780431054000,-500.0,0.00016438,2]
[423811594,1780431054000,-500.0,0.00016438,2]
[423811600,1780431054000,-500.0,0.00016438,2]
[423811595,1780431054000,-500.0,0.00016438,2]
[423811597,1780431054000,-677.89,0.00016438,2]
[423811596,1780431054000,-500.0,0.00016438,2]
[423811586,1780431054000,-500.0,0.00016438,2]
[423811599,1780431054000,-500.0,0.00016438,2]
[423811601,1780431054000,-500.0,0.00016438,2]
[423811580,1780431054000,-500.0,0.00016346,2]
[423811576,1780431054000,-199.01073307,0.00016239,2]
[423811577,1780431054000,-150.4959156,0.00016239,2]
[423811605,1780431054000,-1585.15,0.00016438,2]
[423811559,1780431054000,-500.0,0.00016164,2]
[423811557,1780431054000,-551.38,0.00016164,2]
[423811560,1780431054000,-522.99,0.00016164,2]
[423811562,1780431054000,-648.3,0.00016164,2]
[423811558,1780431054000,-500.0,0.00016164,2]
[423811561,1780431054000,-500.0,0.00016164,2]
[423811564,1780431054000,-500.0,0.00016164,2]
[423811563,1780431054000,-500.0,0.00016164,2]
[423811574,1780431054000,-163.67111506,0.00016239,2]
[423811587,1780431054000,-500.0,0.00016438,2]
[423811566,1780431054000,-12306.8,0.00016164,2]
[423811573,1780431054000,-172.71564422,0.0001623,2]
[423811572,1780431054000,-151.57202489,0.0001623,2]
[423811569,1780431054000,-947.24,0.00016164,2]
[423811565,1780431054000,-500.0,0.00016164,2]
[423811568,1780431054000,-500.0,0.00016164,2]
[423811567,1780431054000,-500.0,0.00016164,2]
[423811571,1780431054000,-151.1,0.000162,2]
[423811575,1780431054000,-188.88773334,0.00016239,2]
[423811578,1780431054000,-576.43545729,0.00016243,3]
[423811589,1780431054000,-363.45,0.00016438,2]
[423811570,1780431054000,-1200.27,0.00016164,2]
[423811603,1780431054000,-549.68,0.00016438,2]
[423811621,1780431054000,-500.0,0.00016438,2]
[423811606,1780431054000,-540.2,0.00016438,2]
[423811633,1780431054000,-151.1632032,0.00016438,2]
[423811634,1780431054000,-151.0,0.00016438,2]
[423811636,1780431054000,-500.0,0.00016712,2]
[423811635,1780431054000,-151.0,0.00016438,2]
[423811637,1780431054000,-503.92,0.00016712,2]
[423811639,1780431054000,-500.0,0.00016712,2]
[423811640,1780431054000,-562.5,0.00016712,2]
[423811638,1780431054000,-500.0,0.00016712,2]
[423811642,1780431054000,-500.0,0.00016712,2]
[423811641,1780431054000,-500.0,0.00016712,2]
[423811643,1780431054000,-500.0,0.00016712,2]
[423811646,1780431054000,-500.0,0.00016712,2]
[423811647,1780431054000,-500.0,0.00016712,2]
[423811645,1780431054000,-500.0,0.00016712,2]
[423811648,1780431054000,-677.89,0.00016712,2]
[423811649,1780431054000,-1051.96,0.00016712,2]
[423811651,1780431054000,-500.0,0.00016712,2]
[423811650,1780431054000,-500.0,0.00016712,2]
[423811652,1780431054000,-500.0,0.00016712,2]
[423811653,1780431054000,-195.3,0.00016712,2]
[423811607,1780431054000,-500.0,0.00016438,2]
[423811632,1780431054000,-155.832112,0.00016438,2]
[423811631,1780431054000,-151.0,0.00016438,2]
[423811644,1780431054000,-500.0,0.00016712,2]
[423811630,1780431054000,-151.0,0.00016438,2]
[423811608,1780431054000,-500.0,0.00016438,2]
[423811629,1780431054000,-151.0,0.00016438,2]
[423811613,1780431054000,-542.13,0.00016438,2]
[423811604,1780431054000,-500.0,0.00016438,2]
[423811609,1780431054000,-604.75,0.00016438,2]
[423811611,1780431054000,-1127.13,0.00016438,2]
[423811614,1780431054000,-551.38,0.00016438,2]
[423811610,1780431054000,-500.0,0.00016438,2]
[423811612,1780431054000,-1003.95,0.00016438,2]
[423811617,1780431054000,-522.99,0.00016438,2]
[423811615,1780431054000,-500.0,0.00016438,2]
[423811618,1780431054000,-500.0,0.00016438,2]
[423811622,1780431054000,-500.0,0.00016438,2]
[423811620,1780431054000,-500.0,0.00016438,2]
[423811619,1780431054000,-648.3,0.00016438,2]
[423811623,1780431054000,-12306.8,0.00016438,2]
[423811624,1780431054000,-500.0,0.00016438,2]
[423811626,1780431054000,-947.24,0.00016438,2]
[423811625,1780431054000,-496.75,0.00016438,2]
[423811616,1780431054000,-500.0,0.00016438,2]
[423811628,1780431054000,-151.0,0.00016438,2]
[423811627,1780431054000,-1200.27,0.00016438,2]
[423811675,1780431055000,-947.24,0.00016712,2]
[423811695,1780431055000,-549.68,0.00016986,2]
[423811691,1780431055000,-1051.96,0.00016986,2]
[423811694,1780431055000,-500.0,0.00016986,2]
[423811689,1780431055000,-441.61,0.00016986,2]
[423811686,1780431055000,-230.32,0.00016986,2]
[423811692,1780431055000,-500.0,0.00016986,2]
[423811688,1780431055000,-500.0,0.00016986,2]
[423811679,1780431055000,-503.92,0.00016986,2]
[423811693,1780431055000,-500.0,0.00016986,2]
[423811690,1780431055000,-677.89,0.00016986,2]
[423811687,1780431055000,-500.0,0.00016986,2]
[423811706,1780431055000,-500.0,0.00016986,2]
[423811697,1780431055000,-540.2,0.00016986,2]
[423811699,1780431055000,-500.0,0.00016986,2]
[423811709,1780431055000,-500.0,0.00016986,2]
[423811702,1780431055000,-1127.13,0.00016986,2]
[423811698,1780431055000,-500.0,0.00016986,2]
[423811711,1780431055000,-500.0,0.00016986,2]
[423811701,1780431055000,-500.0,0.00016986,2]
[423811710,1780431055000,-648.3,0.00016986,2]
[423811700,1780431055000,-604.75,0.00016986,2]
[423811703,1780431055000,-1003.95,0.00016986,2]
[423811708,1780431055000,-522.99,0.00016986,2]
[423811676,1780431055000,-1200.27,0.00016712,2]
[423811696,1780431055000,-1585.15,0.00016986,2]
[423811680,1780431055000,-500.0,0.00016986,2]
[423811658,1780431055000,-500.0,0.00016712,2]
[423811677,1780431055000,-500.0,0.00016894,2]
[423811657,1780431055000,-540.2,0.00016712,2]
[423811659,1780431055000,-500.0,0.00016712,2]
[423811655,1780431055000,-347.34,0.00016712,2]
[423811656,1780431055000,-1585.15,0.00016712,2]
[423811654,1780431055000,-549.68,0.00016712,2]
[423811707,1780431055000,-500.0,0.00016986,2]